[Event "35th Roquetas Festival 2024"]
[Site "Roquetas de Mar"]
[Date "2024.01.04"]
[Round "5.2"]
[White "Suarez Uriel, Adrian"]
[Black "Sosa, Tomas"]
[Result "1-0"]
[ECO "C58"]
[WhiteElo "2365"]
[BlackElo "2554"]
[Annotator "TA"]
[PlyCount "77"]
[EventDate "2024.01.02"]
[EventType "swiss"]
[EventCountry "ESP"]
[SourceTitle "playchess.com"]
[Source "ChessBase"]
[SourceQuality "1"]
[TimeControl "5400+30"]

{[%evp 14,77,29,18,37,33,16,15,29,26,21,22,10,36,26,12,19,18,17,8,14,14,8,0,0,-64,-64,-94,-88,-79,-35,-96,-87,-89,-95,-85,-72,-209,-194,-218,-210,-200,0,0,37,0,-7,-182,0,0,0,0,0,0,0,0,0,0,780,773,12834,12835,29989,29990,29997,29998]} 1. e4 e5 2. Nf3 Nc6 3. Bc4 Nf6 4. Ng5 d5 5. exd5 Na5 6. Bb5+ c6 7. dxc6 bxc6 8. Bd3 Nd5 {C58: Two Knights: 4 Ng5 d5 5 exd5 Na5 sidelines.} 9. Nf3 (9. Qh5 g6 10. Nxf7 gxh5 $17) 9... Bd6 10. O-O O-O {The position is equal.} 11. Re1 {[%cal Oc2c3]} f5 12. Nxe5 Qf6 $1 (12... Qh4 $2 13. Bf1 $18) 13. Nf3 {Bf1 would be deadly.} g5 $1 14. c4 (14. g3 $5 {[%cal Rb1c3]}) 14... Nf4 15. Bf1 g4 {[#]} 16. d4 $1 {[%cal Oc4c5] Black must now prevent c5!} gxf3 17. Qxf3 Ne6 $132 {[%mdl 2048] Black has counterplay} (17... Qxd4 18. Rd1 $16) 18. c5 Bc7 {[#]} 19. d5 $146 (19. Bd2 $11) ({Predecessor:} 19. b4 Nxd4 20. Qc3 f4 21. Bb2 Rd8 22. Nd2 f3 23. bxa5 fxg2 24. Bc4+ Kf8 25. Re3 {1-0 Nguyen,N (2645)-So,W (2769) Titled Tuesday intern op 04th Jul Early blitz 2023 (4)}) 19... Nd4 $15 {[%mdl 64] Deflection} 20. Qd3 cxd5 21. Nc3 Rd8 (21... Qh4 $2 22. g3 (22. Nxd5 $2 Qxh2#) 22... Qg4 23. Bg2 $18) 22. f4 ({White should try} 22. Bg5 $1 $15 Qxg5 23. Qxd4) 22... Nac6 $17 23. Be3 {[#]} Nf3+ $1 24. gxf3 {And now Nb5 would win.} d4 $1 25. Bd2 (25. Qc4+ Be6 26. Qa4 Bf7 $17) (25. Nb5 $17 {might work better.} dxe3 26. Qb3+ Kh8 27. Nxc7 Qg7+ 28. Kh1 Qxc7 29. Qxe3) 25... dxc3 $19 26. Qc4+ Kf8 $1 27. Bxc3 {[#]} Qh6 (27... Nd4 $1 $19 28. Bg2 Ba6 29. Bxd4 Rxd4) 28. Re2 $1 $11 {Strongly threatening Rg2. The board is on fire.} Na5 (28... Qxf4 $2 29. Rg2 Qxc4 30. Bxc4 $18) (28... Nd4 $5 29. Bxd4 Ba6 $11) 29. Bxa5 (29. Qa4 $5 {[%cal Rc3a5]} Bd7 30. Qa3 $14 (30. Qd4 Nc6 $11)) 29... Bxa5 30. Rg2 $2 {[#]} (30. b4 $1 $11 {and White has nothing to worry.} Qf6 31. Rae1) 30... Qe6 $2 ({Better is} 30... Be6 $1 $19 {[%cal Re6c4]} 31. Qb5 Bd2) 31. Qa4 Bd2 (31... Qe3+ 32. Kh1 Qxc5 33. Qb3 $14) 32. Kh1 {aiming for Bc4.} Bb7 $1 ({Much less strong is} 32... Qd5 33. Bb5 Rb8 34. Rd1 (34. Bc4 Qxf3 35. c6 Rxb2 $11) 34... Qxc5 35. Rgxd2 (35. Bc4 $2 Rxb2 36. Rg8+ Ke7 $19) 35... Rxd2 36. Rxd2 Qxb5 37. Qxb5 Rxb5 38. Rd8+ Ke7 39. Rxc8 $16) 33. Bc4 Bd5 34. Bxd5 Qxd5 35. Qa6 Bxf4 {[%mdl 8192]} (35... Kf7 $11) 36. Qf6+ $18 Ke8 37. c6 {Intending Re1+ and mate.} Be3 38. Re1 Qxf3 {[#]} 39. Rxe3+ $1 {[%mdl 576] Double Attack. White used his chance. Ingenious play by Suarez Uriel!   Weighted Error Value: White=0.22 (precise) /Black=0.38} 1-0

[Event "35th Roquetas Festival 2024"]
[Site "Roquetas de Mar"]
[Date "2024.01.04"]
[Round "5.3"]
[White "Bernadskiy, Vitaliy"]
[Black "Tejedor Fuente, Enrique"]
[Result "1-0"]
[ECO "B40"]
[WhiteElo "2566"]
[BlackElo "2395"]
[Annotator "TA"]
[PlyCount "157"]
[EventDate "2024.01.02"]
[EventType "swiss"]
[EventCountry "ESP"]
[SourceTitle "playchess.com"]
[Source "ChessBase"]
[SourceQuality "1"]
[TimeControl "5400+30"]

{[%evp 17,157,10,13,14,62,0,0,0,0,10,0,0,0,0,27,12,33,40,44,31,50,48,42,45,50,58,55,45,68,62,107,75,64,75,171,164,171,167,235,239,235,218,335,338,308,307,276,135,230,247,283,274,273,251,482,464,485,472,480,483,440,475,443,459,618,610,534,668,666,655,654,639,586,585,12836,12836,12837,12838,12838,12839,12839,12839,12840,12840,12841,12841,12841,12842,12842,12843,12843,12843,12845,12846,12846,12845,12845,12846,12848,12847,12849,12848,12849,12847,12849,12849,12850,12849,12850,12850,12850,27999,27999,27999,27999,27999,27999,27999,27999,27999,27999,27999,27999,27999,27999,27999,27999,27999,27999,27999,27999,27999,27999,27999,27999,27999,27999,27999,27999,27999,27999,27999]} 1. e4 {[%emt 0:04:06]} c5 {[%emt 0:02:19]} 2. Nf3 {[%emt 0:00:33]} e6 {[%emt 0:01:38]} 3. Nc3 {[%emt 0:00:29]} Nc6 {[%emt 0:00:58]} 4. Bb5 {[%emt 0:00:20]} Nge7 {[%emt 0:05:21]} 5. O-O {[%emt 0:00:06]} a6 {[%emt 0:03:42]} 6. Bxc6 {[%emt 0:00:28]} Nxc6 {[%emt 0:00:03]} 7. d4 {[%emt 0:00:06]} cxd4 {[%emt 0:00:05]} 8. Nxd4 {[%emt 0:00:04]} Be7 {[%emt 0:00:53]} 9. Nxc6 {[%emt 0:00:21]} bxc6 {[%emt 0:00:58] 9...dxc6 gains popularity.} 10. e5 {[%emt 0:00:07] B30: Sicilian: 2...Nc6 3 Bb5, lines without ...g6.} f6 {[%emt 0:03:44]} (10... O-O $11 {deserves consideration.}) 11. Ne4 {[%emt 0:06:21]} (11. Qh5+ $14 g6 12. Qh6 (12. Qe2 O-O $11) 12... fxe5 13. Ne4) 11... O-O $11 {[%emt 0:01:57]} 12. Bf4 {[%emt 0:00:23] The position is equal.} fxe5 {[%emt 0:03:51]} 13. Bxe5 {[%emt 0:02:15]} d5 {[%emt 0:00:11]} 14. Qg4 {[%emt 0:00:09][%csl Ge5][%cal Rg4g7]} Rf7 {[%emt 0:00:19]} 15. Rad1 {[%emt 0:00:27] [#]} Bd7 $146 {[%emt 0:04:48]} ({Predecessor:} 15... Qf8 16. Ng5 Rf5 17. f4 Bxg5 18. fxg5 Qc5+ 19. Bd4 Qxc2 20. Rc1 Qa4 21. Rxf5 exf5 {½-½ Rozek,M (1442)-Karaszewski,G (1614) POL-chT U20 2nd League 2020 (6.22)}) 16. Nd2 {[%emt 0:05:14]} Qb6 {[%emt 0:05:41]} 17. Nf3 {[%emt 0:00:10]} Raf8 {[%emt 0:09:36]} 18. b3 {[%emt 0:08:13]} Qd8 {[%emt 0:17:58]} 19. Rde1 {[%emt 0:04:52]} c5 {[%emt 0:05:18]} 20. a4 {[%emt 0:06:40]} Kh8 {[%emt 0:01:21]} 21. Re2 {[%emt 0:02:01]} Bc8 {[%emt 0:01:25]} 22. Rfe1 {[%emt 0:05:04]} (22. h4 {keeps more tension.} h6 23. Qg6 Kg8 24. h5) 22... Bf6 {[%emt 0:11:13]} 23. Qg3 {[%emt 0:02:14] White is much more active.} Rd7 {[%emt 0:02:22] Prevents Bd6.} 24. h4 {[%emt 0:03:18]} (24. Bxf6 $6 gxf6 25. Rxe6 Rg7 $11) 24... d4 {[%emt 0:04:11]} 25. h5 {[%emt 0:04:46]} (25. Bxf6 $6 gxf6 26. Rxe6 Rg7 $11) 25... Rd5 {[%emt 0:02:09] Black is on the road to losing.} (25... d3 $16 26. cxd3 Rxd3) 26. Re4 $18 {[%emt 0:00:45]} h6 {[%emt 0:02:53]} 27. Nh4 {[%emt 0:02:48][%cal Bf3h4,Bh4g6,Bg6f4][%mdl 32] Ng6+ is the strong threat.} Kh7 {[%emt 0:01:19]} (27... Bxe5 $142 28. Rxe5 Kg8) 28. Ng6 {[%emt 0:00:36]} Rf7 {[%emt 0:01:35]} 29. Nf4 {[%emt 0:01:44]} Bg5 {[%emt 0:03:55]} (29... Rxe5 {was called for.} 30. Rxe5 Bxe5 31. Rxe5 Qd6 32. Nxe6 Re7 33. Nf8+ (33. Rxc5 Qxe6 34. Qd3+ Kh8 $17) 33... Kg8 34. Rxe7 (34. Ng6 Rxe5 35. Qxe5 Qxe5 $16) 34... Qxe7) 30. Nxd5 {[%emt 0:02:24]} exd5 {[%emt 0:00:02]} 31. R4e2 {[%emt 0:00:05][%cal Be4e2,Be2e8,Be8a8,Ba8a7][%mdl 32] Hoping for f4.} Bf5 {[%emt 0:00:31] [#]} 32. b4 {[%emt 0:01:16]} (32. Bd6 $1 $18 {is the precise move to win.}) 32... d3 {[%emt 0:00:04]} (32... cxb4 $16 {is a better defense.} 33. Qb3 (33. Bxd4 Qc7 $16) 33... d3 34. cxd3 a5) 33. cxd3 {[%emt 0:00:15]} cxb4 {[%emt 0:00:02]} 34. Bb2 {[%emt 0:01:15] Threatens to win with Re8.} Bh4 {[%emt 0:02:16]} 35. Qf4 {[%emt 0:00:24] Black must now prevent Re8.} a5 $2 {[%emt 0:00:57]} (35... Qg5 {was necessary.} 36. Qxg5 (36. Qxb4 Bh3 $11) 36... Bxg5) 36. Re8 {[%emt 0:00:34]} Qg5 {[%emt 0:00:28] [#]} 37. Qxg5 {[%emt 0:00:35]} Bxg5 {[%emt 0:00:02] A strong pair of Bishops.} 38. Ra8 {[%emt 0:00:18] White wants to mate with Ree8.} Bg4 {[%emt 0:00:39]} 39. Ree8 {[%emt 0:02:07][%csl Ga8][%cal Re8h8]} ({Don't take} 39. Rxa5 Rd7 40. Rb5 Bd2 $18) 39... Bxh5 {[%emt 0:00:03]} 40. f3 {[%emt 0:00:05]} ({Not} 40. Rxa5 Rc7 41. Rf8 Bd2 42. Rxd5 Bf7 $18) 40... Bxf3 {[%emt 0:03:11]} 41. gxf3 {[%emt 0:00:40]} Rxf3 {[%emt 0:00:13]} 42. Ra7 {[%emt 0:01:02][%csl Gb2][%cal Ra7g7]} Kg6 {[%emt 0:00:26]} 43. Rxg7+ {[%emt 0:02:52]} Kh5 {[%emt 0:00:02]} 44. Re2 {[%emt 0:01:08]} Rxd3 {[%emt 0:00:34]} 45. Rh2+ {[%emt 0:02:21]} Kg4 {[%emt 0:00:01]} 46. Rxh6 {[%emt 0:02:29]} Rd1+ {[%emt 0:00:38]} 47. Kf2 {[%emt 0:00:04] Threatening mate with Bf6.} Rd2+ {[%emt 0:01:37]} 48. Ke1 {[%emt 0:00:03] Intending Bf6 and mate.} Rxb2 {[%emt 0:00:22][%mdl 4096] Endgame [#] KRR-KRB} 49. Rhg6 $1 {[%emt 0:00:04]} Rb1+ {[%emt 0:00:38]} 50. Ke2 {[%emt 0:00:04]} Rb2+ {[%emt 0:00:28]} 51. Kd1 {[%emt 0:00:04]} Kf4 {[%emt 0:00:32]} 52. Rxg5 {[%emt 0:00:09]} d4 {[%emt 0:00:30]} 53. Kc1 {[%emt 0:01:19]} Ra2 {[%emt 0:00:27]} 54. Kb1 {[%emt 0:00:24]} Rxa4 {[%emt 0:00:19]} 55. Rg3 {[%emt 0:00:38]} Ke4 {[%emt 0:00:44]} 56. R7g4+ {[%emt 0:00:48]} Kd5 {[%emt 0:00:29]} 57. Rd3 {[%emt 0:00:19]} b3 {[%emt 0:00:26]} 58. Rxb3 {[%emt 0:00:07]} Kc5 {[%emt 0:00:35]} 59. Kb2 {[%emt 0:00:21]} Kd5 {[%emt 0:00:18]} 60. Rb8 {[%emt 0:02:41]} Kc4 {[%emt 0:00:25]} 61. Rg3 {[%emt 0:01:17]} Kd5 {[%emt 0:00:14]} 62. Rg1 {[%emt 0:01:30]} Rc4 {[%emt 0:00:38]} 63. Rb5+ {[%emt 0:00:27]} Ke4 {[%emt 0:00:24]} 64. Rxa5 {[%emt 0:00:06]} Rb4+ {[%emt 0:00:59] White mates.} 65. Kc2 {[%emt 0:00:16]} Rc4+ {[%emt 0:00:31]} 66. Kd2 {[%emt 0:00:05]} Rb4 {[%emt 0:00:29]} 67. Re1+ {[%emt 0:00:05]} Kf4 {[%emt 0:00:26]} 68. Kd3 {[%emt 0:00:05]} Rb3+ {[%emt 0:00:15]} 69. Kxd4 {[%emt 0:00:04]} Rb4+ {[%emt 0:00:09]} 70. Kd5 {[%emt 0:00:06]} Rb8 {[%emt 0:00:14]} 71. Ra4+ {[%emt 0:00:14]} Kf5 {[%emt 0:00:11]} 72. Rf1+ {[%emt 0:00:04]} Kg5 {[%emt 0:00:05]} 73. Ra2 {[%emt 0:00:09]} Rd8+ {[%emt 0:00:18]} 74. Ke6 {[%emt 0:00:04]} Kg4 {[%emt 0:00:08]} 75. Rg2+ {[%emt 0:00:06]} Kh3 {[%emt 0:00:03]} 76. Rg7 {[%emt 0:00:02][%cal Rf1h1]} Kh2 {[%emt 0:00:20]} 77. Rf6 {[%emt 0:00:09][%cal Rf6h6]} Rh8 {[%emt 0:00:09]} 78. Kf7 {[%emt 0:00:19]} Kh3 {[%emt 0:00:31]} 79. Rg5 {[%emt 0:00:05] Weighted Error Value: White=0.08 (flawless) /Black=0.35} 1-0

[Event "35th Roquetas Festival 2024"]
[Site "Roquetas de Mar"]
[Date "2024.01.04"]
[Round "5.4"]
[White "Korneev, Oleg"]
[Black "Vergara Anton, Diego"]
[Result "1/2-1/2"]
[ECO "C07"]
[WhiteElo "2474"]
[BlackElo "2346"]
[Annotator "TA"]
[PlyCount "65"]
[EventDate "2024.01.02"]
[EventType "swiss"]
[EventCountry "ESP"]
[SourceTitle "playchess.com"]
[Source "ChessBase"]
[SourceQuality "1"]
[TimeControl "5400+30"]

{[%evp 10,65,20,12,24,15,21,18,14,16,18,16,23,27,28,12,18,10,16,5,10,0,6,0,4,4,0,5,1,0,0,0,0,0,0,0,0,0,0,0,0,-31,-27,-31,-14,-26,-2,-27,-27,-32,-6,-14,-3,-2,-2,-2,-2,-8]} 1. e4 {[%emt 0:09:01]} e6 {[%emt 0:00:24]} 2. d4 {[%emt 0:01:46]} d5 {[%emt 0:00:08]} 3. Nd2 {[%emt 0:00:05]} c5 {[%emt 0:00:07]} 4. exd5 {[%emt 0:00:05]} Qxd5 {[%emt 0:00:08]} 5. Ngf3 {[%emt 0:00:40]} cxd4 {[%emt 0:00:13]} 6. Bc4 {[%emt 0:00:02]} Qd7 {[%emt 0:00:17] C07: French Tarrasch: 3...c5, 4 Ngf3 and 4 exd5 Qxd5.} 7. O-O {[%emt 0:00:59]} Nc6 {[%emt 0:00:14]} 8. Nb3 {[%emt 0:00:17][%cal Rb3d4]} a6 {[%emt 0:00:15]} 9. Nbxd4 {[%emt 0:02:39]} Nxd4 {[%emt 0:00:06]} 10. Qxd4 {[%emt 0:00:05]} Qxd4 {[%emt 0:00:20]} 11. Nxd4 {[%emt 0:00:02]} Bd7 $1 {[%emt 0:00:35] The main line 11...Bd7 scores better than 11...Nf6.} 12. c3 {[%emt 0:08:07] [#]} Bd6 $146 {[%emt 0:06:31]} ({Predecessor:} 12... Nf6 13. Re1 Rc8 14. Bb3 Bc5 15. Nf3 Ng4 16. Nd4 O-O 17. h3 Nf6 18. Nf3 Rfd8 {0-1 Karacsonyi,G (2386)-Shevchenko,K (2694) HUN-ch Rapid 2023 (3)}) 13. Be3 {[%emt 0:16:39]} Nf6 {[%emt 0:03:47]} 14. h3 {[%emt 0:02:49] Wards off Ng4} Rc8 {[%emt 0:03:36]} 15. Bb3 {[%emt 0:00:07]} O-O {[%emt 0:01:21]} 16. Rad1 {[%emt 0:00:33][%cal Od4e6]} Bb8 {[%emt 0:01:54]} 17. Rfe1 {[%emt 0:00:20]} h6 {[%emt 0:00:37]} 18. Nc2 {[%emt 0:15:32]} Bb5 {[%emt 0:04:59]} 19. Bd4 {[%emt 0:04:42]} Rfd8 {[%emt 0:03:34]} 20. Bb6 {[%emt 0:03:55]} Rd7 {[%emt 0:02:47]} 21. Nd4 {[%emt 0:08:42]} Bc4 {[%emt 0:03:31]} 22. Bxc4 {[%emt 0:00:02]} Rxc4 {[%emt 0:00:02]} 23. Nc2 {[%emt 0:00:52][%cal Bd4c2,Bc2e3,Be3g4][%mdl 32]} Rc8 {[%emt 0:04:25]} 24. Ne3 {[%emt 0:07:33]} Bf4 {[%emt 0:05:38]} 25. Ng4 {[%emt 0:00:41] [#] Strongly threatening Nxf6+.} Nd5 {[%emt 0:01:35]} 26. Bd4 {[%emt 0:00:15]} Rcd8 {[%emt 0:01:55][%cal Od5b4]} 27. g3 {[%emt 0:04:16]} h5 {[%emt 0:03:15]} (27... Bc7 $5) 28. Ne5 {[%emt 0:01:36]} (28. gxf4 $5 {[%cal Rg4e5]} hxg4 29. hxg4 $11) 28... Bxe5 {[%emt 0:00:04]} 29. Rxe5 {[%emt 0:01:47]} Ne7 {[%emt 0:00:25] [#] aiming for ...Ng6.} 30. Rde1 {[%emt 0:00:52] The position is equal.} Nc6 {[%emt 0:00:33][%csl LRd4,LRe5]} 31. Rxh5 {[%emt 0:00:06]} Nxd4 {[%emt 0:00:07]} 32. cxd4 {[%emt 0:00:02]} Rxd4 {[%emt 0:00:02]} 33. Rhe5 {[%emt 0:00:25] Not much happened in this game.   Weighted Error Value: White=0.05 (flawless) /Black=0.04 (flawless)} 1/2-1/2

[Event "35th Roquetas Festival 2024"]
[Site "Roquetas de Mar"]
[Date "2024.01.04"]
[Round "5.5"]
[White "Stremavicius, Titas"]
[Black "Alshameary Puente, Ismael"]
[Result "1-0"]
[ECO "A06"]
[WhiteElo "2543"]
[BlackElo "2317"]
[Annotator "TA"]
[PlyCount "103"]
[EventDate "2024.01.02"]
[EventType "swiss"]
[EventCountry "ESP"]
[SourceTitle "playchess.com"]
[Source "ChessBase"]
[SourceQuality "1"]
[TimeControl "5400+30"]

{[%evp 14,103,27,24,16,15,24,24,29,37,30,17,27,0,37,-8,-10,-20,-19,-14,-16,-58,12,27,27,0,35,39,80,66,110,101,210,193,193,193,186,175,167,148,218,204,207,218,245,243,237,233,245,251,244,224,335,293,257,266,348,345,360,352,320,304,477,268,410,405,656,380,385,398,489,357,485,466,618,612,599,596,796,514,583,581,552,546,626,535,602,577,29991,29983,29983,29984]} 1. Nf3 {[%emt 0:03:04]} d5 {[%emt 0:00:28]} 2. g3 {[%emt 0:00:08]} Nf6 {[%emt 0:00:37]} 3. Bg2 {[%emt 0:00:07]} c5 {[%emt 0:01:52]} 4. O-O {[%emt 0:00:18]} e6 {[%emt 0:00:14]} 5. c4 {[%emt 0:00:27]} d4 {[%emt 0:01:27]} 6. e3 {[%emt 0:00:17]} Nc6 {[%emt 0:00:11]} 7. exd4 {[%emt 0:00:24]} cxd4 {[%emt 0:00:07]} 8. d3 {[%emt 0:00:07]} Be7 {[%emt 0:00:19] A13: English Opening: 1...e6.} 9. Re1 {[%emt 0:06:12]} Nd7 {[%emt 0:01:42]} 10. Na3 {[%emt 0:04:40]} e5 {[%emt 0:16:43] White has an edge.} 11. Nc2 {[%emt 0:00:24][%cal Ob2b4]} a5 {[%emt 0:01:20]} 12. Qe2 {[%emt 0:19:01]} O-O {[%emt 0:08:17] [#]} 13. a3 $146 {[%emt 0:00:13][%cal Of3d4]} (13. Nfxd4 $5 Nxd4 14. Nxd4 $11) ({Predecessor:} 13. Nd2 Re8 14. b3 Nc5 15. Ba3 Bf8 16. Ne4 Nxe4 17. Bxe4 Nb4 18. Nxb4 axb4 19. Bc1 {1-0 Trimitzios,P (2358)-Markidis,K (2290) GRE-ch 71st Athens 2022 (1)}) 13... Re8 {[%emt 0:09:25]} 14. Rb1 {[%emt 0:01:45]} (14. Bd2 $5 {[%cal Rb2b4]}) 14... a4 {[%emt 0:07:09]} 15. Nd2 {[%emt 0:00:35]} Nc5 {[%emt 0:02:15]} 16. b4 {[%emt 0:04:47]} axb3 {[%emt 0:00:39]} 17. Nxb3 {[%emt 0:00:04]} (17. Nb4 {is interesting.} e4 18. Nxe4 Bf5 19. Qf1) 17... Nxb3 {[%emt 0:09:47]} (17... Na4 $1 $15 18. Bd2 (18. Bxc6 bxc6 19. Qxe5 c5 $11) 18... Nc3 19. Bxc3 dxc3) 18. Rxb3 $11 {[%emt 0:00:09]} Bf8 {[%emt 0:00:20]} 19. Nb4 {[%emt 0:14:02]} Bd7 {[%emt 0:10:02]} 20. Nd5 {[%emt 0:05:03]} Na5 {[%emt 0:00:30]} 21. Rb1 {[%emt 0:00:14] White now steadily converts the win.} Bc6 {[%emt 0:00:46][%cal Ob7b5]} 22. Qg4 {[%emt 0:01:19] White is more active.} Kh8 {[%emt 0:10:06] [#]} (22... Bd7 $16 {is a better defense.} 23. Nf6+ Qxf6 24. Qxd7 Re7) 23. Qf5 $1 $18 {[%emt 0:04:43]} Bxd5 {[%emt 0:02:09]} 24. Bxd5 {[%emt 0:00:53]} (24. cxd5 Qf6 25. Qxf6 gxf6) 24... f6 {[%emt 0:00:05] Black is weak on the light squares} 25. h4 {[%emt 0:03:05][%cal Bh2h4,Bh4h5][%mdl 32]} (25. Bxb7 Nxb7 26. Rxb7 Bxa3 $11) (25. Be4 $6 g6 26. Qh3 f5 $16) 25... Qc8 {[%emt 0:00:54]} 26. Qf3 $40 {[%emt 0:00:51][%mdl 128] White attacks with force.} Nc6 {[%emt 0:00:45]} (26... Bd6 $16 {was necessary.}) 27. Be4 {[%emt 0:02:58]} Kg8 {[%emt 0:01:45]} (27... h6 $2 28. Bxh6 Ne7 29. Bg5 $18) 28. h5 {[%emt 0:04:58][%cal Oh5h6] And now h6! would win.} (28. Qh5 g6 29. Qf3 (29. Bd5+ Kg7 $14) 29... f5) 28... Be7 {[%emt 0:01:44]} 29. Bf5 {[%emt 0:00:57]} Qc7 {[%emt 0:00:17]} 30. Qe4 {[%emt 0:00:31]} Bxa3 {[%emt 0:02:12]} 31. Bxh7+ {[%emt 0:00:07]} Kh8 {[%emt 0:01:11]} 32. Bg6 {[%emt 0:02:50]} Red8 {[%emt 0:03:24]} (32... Reb8 $142 33. Bd2 Bd6) 33. Kg2 {[%emt 0:02:49]} Bxc1 {[%emt 0:02:36]} 34. Rexc1 {[%emt 0:00:05][%cal Oh5h6]} ({Not} 34. Rbxc1 Ne7 $16) 34... f5 {[%emt 0:00:48]} 35. Qxf5 {[%emt 0:03:01][%cal Oh5h6] [#] Strongly threatening h6!} ({Much less strong is} 35. Bxf5 Rf8 36. Rb2 Ra6 $18) 35... Rf8 {[%emt 0:00:08]} 36. Qg5 {[%emt 0:00:09]} Ra2 {[%emt 0:02:35]} 37. Rf1 {[%emt 0:00:06]} Nd8 {[%emt 0:02:03]} (37... Qe7 $142 38. Qxe7 Nxe7 39. Rxb7 Nxg6 40. hxg6 Kg8) 38. Rbe1 {[%emt 0:01:33]} (38. h6 $142) 38... Qc6+ {[%emt 0:01:36]} (38... Nf7 {was called for.} 39. Qf5 Rb2) 39. Be4 {[%emt 0:00:46]} Qf6 {[%emt 0:00:30]} (39... Qh6 $142 40. Qxe5 Nc6 41. Bxc6 Qxc6+ 42. Re4 Kh7) 40. Qxf6 {[%emt 0:01:51]} gxf6 {[%emt 0:00:02]} 41. Ra1 {[%emt 0:00:10]} Rd2 {[%emt 0:00:53]} 42. Rfd1 {[%emt 0:08:38]} Rc2 {[%emt 0:00:12]} 43. Ra8 {[%emt 0:00:39]} Kg7 {[%emt 0:00:20]} 44. Rb1 {[%emt 0:00:56]} f5 {[%emt 0:01:31]} 45. Bxb7 {[%emt 0:00:10]} e4 {[%emt 0:00:06]} 46. dxe4 {[%emt 0:00:33]} fxe4 {[%emt 0:00:16]} 47. Bxe4 {[%emt 0:00:30]} Rcxf2+ {[%emt 0:00:31]} 48. Kh3 {[%emt 0:00:09]} Re2 {[%emt 0:00:58]} 49. Bg6 {[%emt 0:01:59]} Ne6 {[%emt 0:00:30]} 50. Rb7+ {[%emt 0:00:22]} Kh6 {[%emt 0:00:36]} 51. Rh7+ {[%emt 0:00:14]} Kg5 {[%emt 0:00:07]} 52. Ra5+ {[%emt 0:00:05] Weighted Error Value: White=0.40/Black=0.63} 1-0